[Event "Titled Tuesday Blitz November 08 Early 2022"]
[White "Orozbaev, Eldiar"]
[Black "Lawson, Eric"]
[WhiteFideId "13802240"]
[BlackFideId "2604116"]
[WhiteElo "2775"]
[BlackElo "2518"]
[Result "1-0"]
[Round "04"]
[TimeControl "180+1"]
[Date "2022.11.09"]
[WhiteClock "0:01:55"]
[BlackClock "0:00:56"]

1. e4 {[%clk 0:03:00]}  c5 {[%clk 0:02:59]} 2. c3 {[%clk 0:03:01]}  Nf6 {[%clk 0:02:57]} 3. e5 {[%clk 0:03:01]}  Nd5 {[%clk 0:02:57]} 4. d4 {[%clk 0:03:02]}  cxd4 {[%clk 0:02:57]} 5. cxd4 {[%clk 0:03:03]}  e6 {[%clk 0:02:58]} 6. Nf3 {[%clk 0:03:03]}  d6 {[%clk 0:02:58]} 7. Nc3 {[%clk 0:03:04]}  Nxc3 {[%clk 0:02:55]} 8. bxc3 {[%clk 0:03:04]}  Nc6 {[%clk 0:02:52]} 9. Bd3 {[%clk 0:03:03]}  dxe5 {[%clk 0:02:50]} 10. Nxe5 {[%clk 0:03:02]}  Nxe5 {[%clk 0:02:49]} 11. dxe5 {[%clk 0:03:03]}  Bd7 {[%clk 0:02:48]} 12. O-O {[%clk 0:03:03]}  Bc6 {[%clk 0:02:44]} 13. Qe2 {[%clk 0:02:58]}  Be7 {[%clk 0:02:41]} 14. Rd1 {[%clk 0:02:57]}  Qa5 {[%clk 0:02:35]} 15. Bf4 {[%clk 0:02:50]}  O-O {[%clk 0:02:31]} 16. Qg4 {[%clk 0:02:44]}  Qxc3 {[%clk 0:02:24]} 17. Rac1 {[%clk 0:02:40]}  Qa5 {[%clk 0:02:19]} 18. h4 {[%clk 0:02:27]}  Rfd8 {[%clk 0:02:18]} 19. h5 {[%clk 0:02:26]}  Kh8 {[%clk 0:01:57]} 20. h6 {[%clk 0:02:22]}  g6 {[%clk 0:01:57]} 21. Bg5 {[%clk 0:02:21]}  Ba3 {[%clk 0:01:48]} 22. Qf4 {[%clk 0:02:13]}  Kg8 {[%clk 0:01:33]} 23. Bxd8 {[%clk 0:02:06]}  Rxd8 {[%clk 0:01:28]} 24. Bf1 {[%clk 0:02:07]}  Bxc1 {[%clk 0:01:16]} 25. Qf6 {[%clk 0:02:06]}  Bxh6 {[%clk 0:01:15]} 26. Rxd8+ {[%clk 0:02:03]}  Bf8 {[%clk 0:01:15]} 27. Qe7 {[%clk 0:02:01]}  Qxd8 {[%clk 0:00:59]} 28. Qxd8 {[%clk 0:01:59]}  a5 {[%clk 0:00:59]} 29. Qxa5 {[%clk 0:01:59]}  g5 {[%clk 0:00:56]} 30. Be2 {[%clk 0:01:57]}  Bg7 {[%clk 0:00:56]} 31. Qd8+ {[%clk 0:01:55]} 1-0


[Site "https://www.chess.com"]

[Event "Titled Tuesday Blitz November 08 Early 2022"]
[White "Ozen, Bahadir"]
[Black "Postnikov, Daniil"]
[WhiteFideId "6337058"]
[BlackFideId "4166329"]
[WhiteElo "2819"]
[BlackElo "2566"]
[Result "1-0"]
[Round "04"]
[TimeControl "180+1"]
[Date "2022.11.09"]
[WhiteClock "0:00:29"]
[BlackClock "0:00:02"]

1. g3 {[%clk 0:03:00]}  f5 {[%clk 0:02:56]} 2. Bg2 {[%clk 0:03:00]}  Nf6 {[%clk 0:02:57]} 3. f4 {[%clk 0:03:00]}  g6 {[%clk 0:02:57]} 4. Nf3 {[%clk 0:03:00]}  Bg7 {[%clk 0:02:58]} 5. d3 {[%clk 0:03:01]}  O-O {[%clk 0:02:58]} 6. O-O {[%clk 0:03:00]}  d6 {[%clk 0:02:57]} 7. e4 {[%clk 0:03:00]}  Nc6 {[%clk 0:02:52]} 8. Nc3 {[%clk 0:02:57]}  Kh8 {[%clk 0:02:44]} 9. Kh1 {[%clk 0:02:37]}  e5 {[%clk 0:02:39]} 10. fxe5 {[%clk 0:02:31]}  dxe5 {[%clk 0:02:34]} 11. exf5 {[%clk 0:02:18]}  Bxf5 {[%clk 0:02:32]} 12. Bg5 {[%clk 0:01:43]}  Qd7 {[%clk 0:02:31]} 13. Qd2 {[%clk 0:01:37]}  Rae8 {[%clk 0:01:59]} 14. Rae1 {[%clk 0:01:37]}  Bh3 {[%clk 0:01:46]} 15. Bxh3 {[%clk 0:01:33]}  Qxh3 {[%clk 0:01:45]} 16. Qg2 {[%clk 0:01:34]}  Qd7 {[%clk 0:01:43]} 17. Bxf6 {[%clk 0:01:33]}  Bxf6 {[%clk 0:01:43]} 18. Ne4 {[%clk 0:01:33]}  Bg7 {[%clk 0:01:43]} 19. Re2 {[%clk 0:01:28]}  Nd4 {[%clk 0:01:36]} 20. Nxd4 {[%clk 0:01:26]}  exd4 {[%clk 0:01:36]} 21. Ref2 {[%clk 0:01:21]}  Rxf2 {[%clk 0:01:32]} 22. Rxf2 {[%clk 0:01:17]}  a5 {[%clk 0:01:12]} 23. Qf1 {[%clk 0:01:11]}  Kg8 {[%clk 0:00:46]} 24. a3 {[%clk 0:01:00]}  a4 {[%clk 0:00:43]} 25. Qc1 {[%clk 0:00:55]}  Qd5 {[%clk 0:00:35]} 26. Kg1 {[%clk 0:00:53]}  c5 {[%clk 0:00:26]} 27. Qf4 {[%clk 0:00:50]}  c4 {[%clk 0:00:12]} 28. Qc7 {[%clk 0:00:48]}  cxd3 {[%clk 0:00:10]} 29. cxd3 {[%clk 0:00:49]}  h6 {[%clk 0:00:07]} 30. h4 {[%clk 0:00:44]}  g5 {[%clk 0:00:06]} 31. hxg5 {[%clk 0:00:44]}  hxg5 {[%clk 0:00:06]} 32. Qc1 {[%clk 0:00:34]}  g4 {[%clk 0:00:05]} 33. Qf4 {[%clk 0:00:33]}  Rf8 {[%clk 0:00:04]} 34. Qxf8+ {[%clk 0:00:32]}  Bxf8 {[%clk 0:00:02]} 35. Nf6+ {[%clk 0:00:33]}  Kg7 {[%clk 0:00:03]} 36. Nxd5 {[%clk 0:00:34]}  Bc5 {[%clk 0:00:04]} 37. Kg2 {[%clk 0:00:34]}  b6 {[%clk 0:00:04]} 38. Rf4 {[%clk 0:00:32]}  Kg6 {[%clk 0:00:03]} 39. Kf2 {[%clk 0:00:31]}  Kg5 {[%clk 0:00:03]} 40. Re4 {[%clk 0:00:28]}  b5 {[%clk 0:00:03]} 41. Nc7 {[%clk 0:00:27]}  b4 {[%clk 0:00:02]} 42. Ne6+ {[%clk 0:00:28]}  Kf5 {[%clk 0:00:02]} 43. Nxc5 {[%clk 0:00:29]}  b3 {[%clk 0:00:02]} 44. Nxa4 {[%clk 0:00:29]} 1-0


[Site "https://www.chess.com"]

[Event "Titled Tuesday Blitz November 08 Early 2022"]
[White "Padmini, Rout"]
[Black "Wiegmann, Sascha"]
[WhiteFideId "5029295"]
[BlackFideId "4682041"]
[WhiteElo "2296"]
[BlackElo "2312"]
[Result "1-0"]
[Round "04"]
[TimeControl "180+1"]
[Date "2022.11.09"]
[WhiteClock "0:00:33"]
[BlackClock "0:00:36"]

1. e4 {[%clk 0:03:00]}  c5 {[%clk 0:02:59]} 2. Nf3 {[%clk 0:02:58]}  d6 {[%clk 0:03:00]} 3. d4 {[%clk 0:02:58]}  cxd4 {[%clk 0:03:00]} 4. Nxd4 {[%clk 0:02:59]}  Nf6 {[%clk 0:03:01]} 5. Nc3 {[%clk 0:02:59]}  a6 {[%clk 0:03:02]} 6. Bg5 {[%clk 0:02:59]}  e6 {[%clk 0:03:01]} 7. f4 {[%clk 0:02:59]}  b5 {[%clk 0:03:02]} 8. e5 {[%clk 0:02:43]}  dxe5 {[%clk 0:03:02]} 9. fxe5 {[%clk 0:02:44]}  Qc7 {[%clk 0:03:03]} 10. Qe2 {[%clk 0:02:23]}  Nfd7 {[%clk 0:02:55]} 11. O-O-O {[%clk 0:02:11]}  Nc6 {[%clk 0:02:41]} 12. Nxc6 {[%clk 0:01:37]}  Qxc6 {[%clk 0:02:42]} 13. Ne4 {[%clk 0:01:36]}  Bb7 {[%clk 0:01:59]} 14. Nd6+ {[%clk 0:01:30]}  Bxd6 {[%clk 0:01:58]} 15. Rxd6 {[%clk 0:01:17]}  Qc7 {[%clk 0:01:59]} 16. Qd2 {[%clk 0:01:04]}  Nxe5 {[%clk 0:01:08]} 17. Bf4 {[%clk 0:01:02]}  Nc4 {[%clk 0:01:08]} 18. Bxc4 {[%clk 0:00:57]}  Qxc4 {[%clk 0:01:09]} 19. b3 {[%clk 0:00:49]}  Qc5 {[%clk 0:01:02]} 20. Rd7 {[%clk 0:00:41]}  Bd5 {[%clk 0:00:56]} 21. Bd6 {[%clk 0:00:35]}  Qc6 {[%clk 0:00:36]} 22. Re7+ {[%clk 0:00:35]}  Kd8 {[%clk 0:00:36]} 23. Qa5+ {[%clk 0:00:33]} 1-0


[Site "https://www.chess.com"]

[Event "Titled Tuesday Blitz November 08 Early 2022"]
[White "Pajeken, Jakob Leon"]
[Black "Matlakov, Maxim"]
[WhiteFideId "12942839"]
[BlackFideId "4168003"]
[WhiteElo "2429"]
[BlackElo "2669"]
[Result "0-1"]
[Round "04"]
[TimeControl "180+1"]
[Date "2022.11.09"]
[WhiteClock "0:00:16"]
[BlackClock "0:00:10"]

1. Nf3 {[%clk 0:02:58]}  Nf6 {[%clk 0:03:00]} 2. d4 {[%clk 0:02:55]}  e6 {[%clk 0:03:00]} 3. c4 {[%clk 0:02:55]}  Bb4+ {[%clk 0:02:58]} 4. Bd2 {[%clk 0:02:53]}  a5 {[%clk 0:02:55]} 5. e3 {[%clk 0:02:45]}  O-O {[%clk 0:02:52]} 6. Bd3 {[%clk 0:02:45]}  d6 {[%clk 0:02:52]} 7. O-O {[%clk 0:02:44]}  Bxd2 {[%clk 0:02:51]} 8. Qxd2 {[%clk 0:02:41]}  Qe7 {[%clk 0:02:51]} 9. Nc3 {[%clk 0:02:39]}  e5 {[%clk 0:02:51]} 10. Qc2 {[%clk 0:02:34]}  h6 {[%clk 0:02:47]} 11. dxe5 {[%clk 0:02:25]}  dxe5 {[%clk 0:02:47]} 12. Nd5 {[%clk 0:02:25]}  Nxd5 {[%clk 0:02:43]} 13. cxd5 {[%clk 0:02:26]}  Rd8 {[%clk 0:02:35]} 14. Bh7+ {[%clk 0:02:01]}  Kh8 {[%clk 0:02:34]} 15. Bf5 {[%clk 0:02:01]}  Bxf5 {[%clk 0:02:31]} 16. Qxf5 {[%clk 0:02:02]}  Nd7 {[%clk 0:02:11]} 17. Rac1 {[%clk 0:01:53]}  Rac8 {[%clk 0:02:08]} 18. Rfd1 {[%clk 0:01:43]}  g6 {[%clk 0:02:06]} 19. Qc2 {[%clk 0:01:38]}  Qd6 {[%clk 0:01:45]} 20. Qc3 {[%clk 0:01:28]}  b6 {[%clk 0:01:42]} 21. e4 {[%clk 0:01:23]}  Kg8 {[%clk 0:01:39]} 22. Nd2 {[%clk 0:01:22]}  Nc5 {[%clk 0:01:05]} 23. Nc4 {[%clk 0:01:10]}  Qf6 {[%clk 0:01:04]} 24. f3 {[%clk 0:00:47]}  Re8 {[%clk 0:01:04]} 25. Nxa5 {[%clk 0:00:39]}  Nxe4 {[%clk 0:00:58]} 26. fxe4 {[%clk 0:00:40]}  bxa5 {[%clk 0:00:58]} 27. Qxa5 {[%clk 0:00:41]}  Qh4 {[%clk 0:00:38]} 28. Qe1 {[%clk 0:00:28]}  Qg5 {[%clk 0:00:35]} 29. Rc2 {[%clk 0:00:24]}  Red8 {[%clk 0:00:33]} 30. Rdc1 {[%clk 0:00:24]}  Rd7 {[%clk 0:00:32]} 31. b4 {[%clk 0:00:21]}  Qe7 {[%clk 0:00:27]} 32. Rc5 {[%clk 0:00:19]}  Ra8 {[%clk 0:00:25]} 33. Qf2 {[%clk 0:00:18]}  h5 {[%clk 0:00:24]} 34. h3 {[%clk 0:00:18]}  h4 {[%clk 0:00:23]} 35. b5 {[%clk 0:00:18]}  Ra3 {[%clk 0:00:22]} 36. Qc2 {[%clk 0:00:17]}  Qg5 {[%clk 0:00:16]} 37. Rxc7 {[%clk 0:00:16]}  Rxc7 {[%clk 0:00:15]} 38. Qxc7 {[%clk 0:00:17]}  Rxa2 {[%clk 0:00:13]} 39. Rc2 {[%clk 0:00:16]}  Ra1+ {[%clk 0:00:11]} 40. Kf2 {[%clk 0:00:16]}  Qg3+ {[%clk 0:00:10]} 41. Ke2 {[%clk 0:00:16]}  Re1+ {[%clk 0:00:10]} 0-1


[Site "https://www.chess.com"]

[Event "Titled Tuesday Blitz November 08 Early 2022"]
[White "Pappelis, Dimitrios"]
[Black "Chernov, Mikhail"]
[WhiteFideId "4215281"]
[BlackFideId "24143170"]
[WhiteElo "2104"]
[BlackElo "2113"]
[Result "0-1"]
[Round "04"]
[TimeControl "180+1"]
[Date "2022.11.09"]
[WhiteClock "0:00:24"]
[BlackClock "0:00:51"]

1. c4 {[%clk 0:03:00]}  c5 {[%clk 0:02:59]} 2. Nf3 {[%clk 0:03:00]}  Nc6 {[%clk 0:03:00]} 3. Nc3 {[%clk 0:03:00]}  e5 {[%clk 0:03:00]} 4. e3 {[%clk 0:02:59]}  f5 {[%clk 0:03:01]} 5. d4 {[%clk 0:02:55]}  e4 {[%clk 0:03:01]} 6. d5 {[%clk 0:02:54]}  exf3 {[%clk 0:03:01]} 7. dxc6 {[%clk 0:02:54]}  dxc6 {[%clk 0:03:02]} 8. Qxd8+ {[%clk 0:02:51]}  Kxd8 {[%clk 0:03:03]} 9. gxf3 {[%clk 0:02:52]}  Nf6 {[%clk 0:03:02]} 10. Bd2 {[%clk 0:02:51]}  Kc7 {[%clk 0:03:01]} 11. O-O-O {[%clk 0:02:51]}  g6 {[%clk 0:03:02]} 12. e4 {[%clk 0:02:48]}  Bg7 {[%clk 0:02:58]} 13. Bf4+ {[%clk 0:02:40]}  Kb6 {[%clk 0:02:57]} 14. Na4+ {[%clk 0:02:40]}  Ka5 {[%clk 0:02:58]} 15. Nxc5 {[%clk 0:02:18]}  fxe4 {[%clk 0:02:55]} 16. fxe4 {[%clk 0:02:07]}  Bf8 {[%clk 0:02:44]} 17. Bc7+ {[%clk 0:02:01]}  b6 {[%clk 0:02:43]} 18. Nb3+ {[%clk 0:01:52]}  Ka6 {[%clk 0:02:43]} 19. Na5 {[%clk 0:01:53]}  bxa5 {[%clk 0:02:41]} 20. e5 {[%clk 0:01:32]}  Bh6+ {[%clk 0:02:32]} 21. Kc2 {[%clk 0:01:30]}  Bf5+ {[%clk 0:02:32]} 22. Kb3 {[%clk 0:01:24]}  Ne4 {[%clk 0:02:23]} 23. Bg2 {[%clk 0:01:06]}  Rab8+ {[%clk 0:01:53]} 24. Bxb8 {[%clk 0:00:40]}  Rxb8+ {[%clk 0:01:54]} 25. Ka3 {[%clk 0:00:40]}  Bf8+ {[%clk 0:01:51]} 26. b4 {[%clk 0:00:41]}  Bxb4+ {[%clk 0:01:46]} 27. Kb3 {[%clk 0:00:38]}  Nxf2 {[%clk 0:01:39]} 28. Rhf1 {[%clk 0:00:30]}  Nxd1 {[%clk 0:01:00]} 29. Rxd1 {[%clk 0:00:31]}  Bd6+ {[%clk 0:01:00]} 30. Ka4 {[%clk 0:00:25]}  Rb4+ {[%clk 0:00:58]} 31. Ka3 {[%clk 0:00:24]}  Bc5 {[%clk 0:00:51]} 0-1


[Site "https://www.chess.com"]

[Event "Titled Tuesday Blitz November 08 Early 2022"]
[White "Perez Gormaz, Matias"]
[Black "Pranav, V"]
[WhiteFideId "3406342"]
[BlackFideId "25060783"]
[WhiteElo "2623"]
[BlackElo "2965"]
[Result "1-0"]
[Round "04"]
[TimeControl "180+1"]
[Date "2022.11.09"]
[WhiteClock "0:01:09"]
[BlackClock "0:01:29"]

1. e4 {[%clk 0:03:00]}  e5 {[%clk 0:03:00]} 2. Nf3 {[%clk 0:03:01]}  Nc6 {[%clk 0:02:59]} 3. Bb5 {[%clk 0:03:02]}  a6 {[%clk 0:02:59]} 4. Ba4 {[%clk 0:03:03]}  d6 {[%clk 0:03:00]} 5. O-O {[%clk 0:02:59]}  Bd7 {[%clk 0:03:00]} 6. c3 {[%clk 0:02:59]}  g6 {[%clk 0:03:01]} 7. d4 {[%clk 0:02:59]}  Bg7 {[%clk 0:03:01]} 8. Re1 {[%clk 0:03:00]}  Nge7 {[%clk 0:03:01]} 9. Be3 {[%clk 0:02:55]}  O-O {[%clk 0:03:00]} 10. Nbd2 {[%clk 0:02:55]}  h6 {[%clk 0:02:59]} 11. dxe5 {[%clk 0:02:54]}  dxe5 {[%clk 0:02:58]} 12. Bc5 {[%clk 0:02:53]}  b6 {[%clk 0:02:58]} 13. Ba3 {[%clk 0:02:51]}  Rb8 {[%clk 0:02:58]} 14. Bb3 {[%clk 0:02:44]}  Na5 {[%clk 0:02:55]} 15. Bc2 {[%clk 0:02:43]}  Re8 {[%clk 0:02:53]} 16. Qe2 {[%clk 0:02:36]}  Qc8 {[%clk 0:02:50]} 17. Bd3 {[%clk 0:02:34]}  b5 {[%clk 0:02:46]} 18. Bc5 {[%clk 0:02:32]}  Nb7 {[%clk 0:02:46]} 19. Nb3 {[%clk 0:02:12]}  Be6 {[%clk 0:02:41]} 20. Nfd2 {[%clk 0:02:05]}  Nc6 {[%clk 0:02:35]} 21. Be3 {[%clk 0:02:03]}  Nd6 {[%clk 0:02:27]} 22. Nc5 {[%clk 0:01:59]}  Bf8 {[%clk 0:02:23]} 23. a4 {[%clk 0:01:57]}  Ra8 {[%clk 0:02:04]} 24. b4 {[%clk 0:01:43]}  Qb8 {[%clk 0:02:00]} 25. Reb1 {[%clk 0:01:40]}  Nd8 {[%clk 0:01:53]} 26. Nf3 {[%clk 0:01:17]}  Bc4 {[%clk 0:01:45]} 27. Nd7 {[%clk 0:01:17]}  Qb7 {[%clk 0:01:37]} 28. Nf6+ {[%clk 0:01:15]}  Kg7 {[%clk 0:01:36]} 29. Nxe8+ {[%clk 0:01:14]}  Nxe8 {[%clk 0:01:37]} 30. Bxc4 {[%clk 0:01:13]}  bxc4 {[%clk 0:01:37]} 31. Nxe5 {[%clk 0:01:11]}  Qxe4 {[%clk 0:01:29]} 32. Bxh6+ {[%clk 0:01:09]} 1-0


[Site "https://www.chess.com"]

[Event "Titled Tuesday Blitz November 08 Early 2022"]
[White "Piesik, Piotr"]
[Black "Starosta, Martyna"]
[WhiteFideId "1136194"]
[BlackFideId "21818754"]
[WhiteElo "2316"]
[BlackElo "1825"]
[Result "1-0"]
[Round "04"]
[TimeControl "180+1"]
[Date "2022.11.09"]
[WhiteClock "0:00:12"]
[BlackClock "0:00:02"]

1. Nf3 {[%clk 0:03:00]}  g6 {[%clk 0:02:56]} 2. g3 {[%clk 0:03:01]}  Bg7 {[%clk 0:02:55]} 3. d4 {[%clk 0:03:01]}  d6 {[%clk 0:02:51]} 4. Bg2 {[%clk 0:03:01]}  Nc6 {[%clk 0:02:51]} 5. O-O {[%clk 0:03:02]}  Bd7 {[%clk 0:02:52]} 6. e4 {[%clk 0:03:01]}  Qc8 {[%clk 0:02:52]} 7. Re1 {[%clk 0:03:00]}  Bh3 {[%clk 0:02:52]} 8. Bxh3 {[%clk 0:02:55]}  Qxh3 {[%clk 0:02:49]} 9. c3 {[%clk 0:02:55]}  h5 {[%clk 0:02:48]} 10. Qb3 {[%clk 0:02:54]}  O-O-O {[%clk 0:02:29]} 11. Ng5 {[%clk 0:02:52]}  Qg4 {[%clk 0:02:20]} 12. f3 {[%clk 0:02:45]}  Qd7 {[%clk 0:02:16]} 13. Nxf7 {[%clk 0:02:37]}  Nf6 {[%clk 0:02:15]} 14. Nxd8 {[%clk 0:02:32]}  Rxd8 {[%clk 0:02:12]} 15. Bg5 {[%clk 0:02:29]}  h4 {[%clk 0:02:11]} 16. Bxh4 {[%clk 0:02:24]}  Rh8 {[%clk 0:02:11]} 17. Qc2 {[%clk 0:02:22]}  Nh7 {[%clk 0:01:55]} 18. f4 {[%clk 0:02:18]}  g5 {[%clk 0:01:47]} 19. Bxg5 {[%clk 0:02:13]}  Nxg5 {[%clk 0:01:44]} 20. fxg5 {[%clk 0:02:14]}  Qg4 {[%clk 0:01:41]} 21. Qg2 {[%clk 0:02:05]}  Qxg5 {[%clk 0:01:29]} 22. Nd2 {[%clk 0:02:04]}  Kb8 {[%clk 0:01:20]} 23. Nf3 {[%clk 0:02:03]}  Qh5 {[%clk 0:01:20]} 24. e5 {[%clk 0:01:51]}  d5 {[%clk 0:01:16]} 25. Nh4 {[%clk 0:01:47]}  e6 {[%clk 0:01:16]} 26. Rf1 {[%clk 0:01:46]}  Bh6 {[%clk 0:01:09]} 27. Rf3 {[%clk 0:01:45]}  Bg5 {[%clk 0:01:08]} 28. Raf1 {[%clk 0:01:44]}  Be7 {[%clk 0:00:54]} 29. Rf4 {[%clk 0:01:30]}  a6 {[%clk 0:00:52]} 30. Nf3 {[%clk 0:01:29]}  Rg8 {[%clk 0:00:49]} 31. g4 {[%clk 0:01:21]}  Qh6 {[%clk 0:00:48]} 32. Qg3 {[%clk 0:01:05]}  Bd8 {[%clk 0:00:42]} 33. h4 {[%clk 0:01:02]}  Ne7 {[%clk 0:00:40]} 34. Rf6 {[%clk 0:00:57]}  Qe3+ {[%clk 0:00:35]} 35. Kh2 {[%clk 0:00:51]}  Nf5 {[%clk 0:00:18]} 36. Rxf5 {[%clk 0:00:51]}  exf5 {[%clk 0:00:19]} 37. g5 {[%clk 0:00:52]}  f4 {[%clk 0:00:19]} 38. Qg2 {[%clk 0:00:45]}  Rh8 {[%clk 0:00:19]} 39. Qf2 {[%clk 0:00:33]}  Qd3 {[%clk 0:00:19]} 40. Rg1 {[%clk 0:00:33]}  Qf5 {[%clk 0:00:19]} 41. Qg2 {[%clk 0:00:31]}  Be7 {[%clk 0:00:18]} 42. Qg4 {[%clk 0:00:31]}  Qe4 {[%clk 0:00:17]} 43. Rg2 {[%clk 0:00:30]}  Rg8 {[%clk 0:00:16]} 44. g6 {[%clk 0:00:29]}  c5 {[%clk 0:00:13]} 45. h5 {[%clk 0:00:29]}  Bf8 {[%clk 0:00:12]} 46. Ng5 {[%clk 0:00:25]}  Qe3 {[%clk 0:00:12]} 47. Qf3 {[%clk 0:00:22]}  Qc1 {[%clk 0:00:12]} 48. Qxd5 {[%clk 0:00:19]}  Rh8 {[%clk 0:00:11]} 49. Qf3 {[%clk 0:00:17]}  cxd4 {[%clk 0:00:10]} 50. cxd4 {[%clk 0:00:17]}  Qc4 {[%clk 0:00:11]} 51. Nf7 {[%clk 0:00:16]}  Rg8 {[%clk 0:00:11]} 52. Qxf4 {[%clk 0:00:16]}  Ka7 {[%clk 0:00:10]} 53. h6 {[%clk 0:00:16]}  Bxh6 {[%clk 0:00:09]} 54. Nxh6 {[%clk 0:00:15]}  Rg7 {[%clk 0:00:08]} 55. Nf5 {[%clk 0:00:15]}  Rg8 {[%clk 0:00:05]} 56. g7 {[%clk 0:00:15]}  Qe6 {[%clk 0:00:06]} 57. Nh6 {[%clk 0:00:14]}  Rd8 {[%clk 0:00:03]} 58. g8=Q {[%clk 0:00:13]}  Rxg8 {[%clk 0:00:03]} 59. Rxg8 {[%clk 0:00:13]}  Qxa2 {[%clk 0:00:04]} 60. d5 {[%clk 0:00:12]}  Qxb2+ {[%clk 0:00:04]} 61. Rg2 {[%clk 0:00:12]}  Qb6 {[%clk 0:00:02]} 62. Nf5 {[%clk 0:00:12]}  Qd8 {[%clk 0:00:02]} 63. Qd4+ {[%clk 0:00:12]}  Ka8 {[%clk 0:00:02]} 64. e6 {[%clk 0:00:12]} 1-0


[Site "https://www.chess.com"]

[Event "Titled Tuesday Blitz November 08 Early 2022"]
[White "Pinheiro, Iung Alicio de O."]
[Black "Jumabayev, Rinat"]
[WhiteFideId "2104350"]
[BlackFideId "13702661"]
[WhiteElo "2579"]
[BlackElo "2843"]
[Result "0-1"]
[Round "04"]
[TimeControl "180+1"]
[Date "2022.11.09"]
[WhiteClock "0:00:13"]
[BlackClock "0:00:44"]

1. e4 {[%clk 0:03:00]}  c6 {[%clk 0:02:58]} 2. Nf3 {[%clk 0:02:56]}  d5 {[%clk 0:02:58]} 3. Nc3 {[%clk 0:02:57]}  dxe4 {[%clk 0:02:57]} 4. Nxe4 {[%clk 0:02:58]}  Nf6 {[%clk 0:02:57]} 5. Qe2 {[%clk 0:02:58]}  Nxe4 {[%clk 0:02:51]} 6. Qxe4 {[%clk 0:02:59]}  Qd5 {[%clk 0:02:51]} 7. Qh4 {[%clk 0:02:59]}  Nd7 {[%clk 0:02:36]} 8. Bc4 {[%clk 0:02:57]}  Qd6 {[%clk 0:02:35]} 9. O-O {[%clk 0:02:39]}  Nb6 {[%clk 0:02:29]} 10. Bb3 {[%clk 0:02:32]}  Be6 {[%clk 0:02:28]} 11. d4 {[%clk 0:02:24]}  Bd5 {[%clk 0:02:19]} 12. Ne5 {[%clk 0:02:16]}  Bxb3 {[%clk 0:01:58]} 13. axb3 {[%clk 0:02:17]}  Nd7 {[%clk 0:01:57]} 14. Nc4 {[%clk 0:02:03]}  Qg6 {[%clk 0:01:47]} 15. Re1 {[%clk 0:01:54]}  e6 {[%clk 0:01:45]} 16. Bf4 {[%clk 0:01:43]}  Qxc2 {[%clk 0:01:37]} 17. Re3 {[%clk 0:00:51]}  Nf6 {[%clk 0:01:17]} 18. Bd6 {[%clk 0:00:29]}  Rd8 {[%clk 0:01:10]} 19. Bxf8 {[%clk 0:00:25]}  Kxf8 {[%clk 0:01:11]} 20. h3 {[%clk 0:00:22]}  a6 {[%clk 0:01:05]} 21. Rae1 {[%clk 0:00:18]}  h6 {[%clk 0:01:03]} 22. Rf3 {[%clk 0:00:17]}  Ke7 {[%clk 0:01:01]} 23. Ne5 {[%clk 0:00:17]}  Qxb2 {[%clk 0:00:48]} 24. Rf4 {[%clk 0:00:13]}  g5 {[%clk 0:00:44]} 0-1


[Site "https://www.chess.com"]